fUSD/lending_fUSD_20251112
["ID","MTS","AMOUNT","RATE_DAILY","PERIOD"]
[393689457,1762927845561,-151.0,0.00037771,31]
[393689458,1762927845570,-263.427106,0.00037771,30]
[393689459,1762927845579,-151.0,0.00037771,31]
[393689460,1762927845588,-276.964938,0.00037771,31]
[393689461,1762927845598,-263.427106,0.00037771,30]
[393689462,1762927845607,-263.427106,0.00037771,30]
[393689463,1762927845616,-263.427106,0.00037771,30]
[393689464,1762927845626,-1246.727996,0.00037771,31]
[393689465,1762927845635,-1246.727996,0.00037771,31]
[393689466,1762927845644,-151.0,0.00037771,31]
[393689467,1762927845654,-1246.727996,0.00037771,31]
[393689468,1762927845663,-151.0,0.00037771,31]
[393689469,1762927845673,-1246.727996,0.00037771,31]
[393689470,1762927845683,-151.0,0.00037771,31]
[393689471,1762927845692,-913.361717,0.00037771,31]
[393689472,1762927845702,-913.361717,0.00037771,31]
[393689473,1762927845712,-913.361717,0.00037771,31]
[393689474,1762927845722,-913.361717,0.00037771,31]
[393689475,1762927845731,-151.0,0.00037771,31]
[393689476,1762927845741,-151.0,0.00037771,31]
[393689477,1762927845751,-151.0,0.00037771,31]
[393689478,1762927845762,-200.074386,0.00037771,31]
[393689479,1762927845772,-151.0,0.00037771,31]
[393689480,1762927845782,-200.074386,0.00037771,31]
[393689481,1762927845792,-151.0,0.00037771,31]
[393689482,1762927845802,-200.074386,0.00037771,31]
[393689483,1762927845811,-200.074386,0.00037771,31]
[393689484,1762927845821,-281.858739,0.00037771,15]
[393689485,1762927845830,-151.0,0.00037771,31]
[393689486,1762927845840,-281.858739,0.00037771,15]
[393689487,1762927845849,-281.858739,0.00037771,15]
[393689488,1762927845859,-281.858739,0.00037771,15]
[393689489,1762927845869,-151.0,0.00037771,31]
[393689490,1762927845878,-151.0,0.00037771,31]
[393689491,1762927845888,-180.573868,0.00037771,31]
[393689492,1762927845898,-151.0,0.00037771,31]
[393689493,1762927845908,-180.573868,0.00037771,31]
[393689494,1762927845917,-151.0,0.00037771,31]
[393689495,1762927845927,-180.573868,0.00037771,31]
[393689496,1762927845936,-180.573868,0.00037771,31]
[393689497,1762927845946,-151.0,0.00037771,31]
[393689498,1762927845955,-151.0,0.00037771,31]
[393689499,1762927845965,-151.0,0.00037771,31]
[393689500,1762927845975,-500.0,0.00037779,30]
[393689501,1762927845985,-151.0,0.00037781,31]
[393689502,1762927845994,-151.85417,0.00037781,31]
[393689503,1762927846003,-151.85417,0.00037781,31]
[393689504,1762927846014,-151.85417,0.00037781,31]
[393689505,1762927846023,-151.85417,0.00037781,31]
[393689506,1762927846032,-151.0,0.000378,31]
[393689507,1762927846042,-171.934768,0.000378,31]
[393689508,1762927846051,-171.934768,0.000378,31]
[393689509,1762927846060,-171.934768,0.000378,31]
[393689510,1762927846069,-171.934768,0.000378,31]
[393689511,1762927846078,-154.03,0.00037808,60]
[393689512,1762927846088,-979.89432828,0.00037814,3]
[393689513,1762927846097,-168.0,0.00037819,2]
[393689514,1762927846106,-3144.94801505,0.00037825,2]
[393689515,1762927846117,-500.0,0.00037829,30]
[393689516,1762927846126,-161.3,0.0003784,14]
[393689517,1762927846137,-156.77,0.00037848,2]
[393689518,1762927846146,-4899.4716414,0.0003787,3]
[393689519,1762927846155,-153.392612,0.00037877,31]
[393689520,1762927846164,-151.0,0.00037877,31]
[393689521,1762927846173,-285.330623,0.00037877,31]
[393689522,1762927846183,-151.0,0.00037877,30]
[393689523,1762927846192,-223.573198,0.00037877,30]
[393689524,1762927846201,-151.0,0.00037877,31]
[393689525,1762927846209,-151.0,0.0003788,31]
[393689526,1762927846218,-151.0,0.0003788,31]
[393689527,1762927846228,-213.753346,0.0003788,31]
[393689528,1762927846237,-151.0,0.0003788,31]
[393689529,1762927846247,-213.753346,0.0003788,31]
[393689530,1762927846256,-151.0,0.0003788,31]
[393689531,1762927846267,-213.753346,0.0003788,31]
[393689532,1762927846276,-213.753354,0.0003788,31]
[393689533,1762927846288,-172.987455,0.0003788,31]
[393689534,1762927846298,-151.0,0.0003788,31]
[393689535,1762927846307,-151.0,0.0003788,31]
[393689536,1762927846316,-151.0,0.0003788,31]
[393689537,1762927846326,-215.434603,0.0003788,31]
[393689538,1762927846335,-203.959598,0.0003788,31]
[393689539,1762927846345,-151.0,0.0003788,31]
[393689540,1762927846355,-203.959598,0.0003788,31]
[393689541,1762927846365,-203.959598,0.0003788,31]
[393689542,1762927846375,-203.959606,0.0003788,31]
[393689543,1762927846384,-905.527452,0.0003788,31]
[393689544,1762927846394,-201.556004,0.0003788,31]
[393689545,1762927846403,-905.527452,0.0003788,31]
[393689546,1762927846413,-201.556004,0.0003788,31]
[393689547,1762927846422,-905.527452,0.0003788,31]
[393689548,1762927846431,-201.556004,0.0003788,31]
[393689549,1762927846441,-905.527454,0.0003788,31]
[393689551,1762927846450,-201.556003,0.0003788,31]
[393689552,1762927846459,-151.0,0.0003788,31]
[393689553,1762927846468,-151.0,0.0003788,31]
[393689554,1762927846477,-158.679883,0.0003788,31]
[393689555,1762927846486,-280.92235,0.0003788,31]
[393689556,1762927846495,-158.679883,0.0003788,31]
[393689557,1762927846504,-151.0,0.0003788,31]
[393689558,1762927846516,-158.679883,0.0003788,31]
[393689559,1762927846526,-151.0,0.0003788,31]
[393689560,1762927846535,-151.0,0.0003788,31]
[393689561,1762927846545,-158.679876,0.0003788,31]
[393689562,1762927846556,-151.0,0.0003788,31]
[393689563,1762927846566,-254.253205,0.0003788,31]
[393689564,1762927846575,-151.0,0.0003788,31]
[393689565,1762927846584,-263.427106,0.0003788,30]
[393689566,1762927846594,-151.0,0.0003788,31]
[393689567,1762927846604,-263.427106,0.0003788,30]
[393689568,1762927846613,-263.427106,0.0003788,30]
[393689569,1762927846623,-263.427109,0.0003788,30]
[393689570,1762927846632,-1246.727996,0.0003788,31]
[393689571,1762927846642,-1246.727996,0.0003788,31]
[393689572,1762927846650,-151.0,0.0003788,31]
[393689573,1762927846660,-1246.727996,0.0003788,31]
[393689574,1762927846669,-151.0,0.0003788,31]
[393689575,1762927846679,-1246.728002,0.0003788,31]
[393689576,1762927846688,-151.0,0.0003788,31]
[393689577,1762927846698,-913.361717,0.0003788,31]
[393689578,1762927846707,-913.361717,0.0003788,31]
[393689579,1762927846716,-913.361717,0.0003788,31]
[393689580,1762927846725,-913.361712,0.0003788,31]
[393689581,1762927846734,-162.25041,0.0003788,31]
[393689582,1762927846744,-151.0,0.0003788,31]
[393689583,1762927846753,-689.312974,0.0003788,31]
[393689585,1762927846764,-689.312974,0.0003788,31]
[393689586,1762927846773,-689.312974,0.0003788,31]
[393689587,1762927846783,-151.0,0.0003788,31]
[393689588,1762927846792,-860.807746,0.0003788,31]
[393689589,1762927846802,-689.312974,0.0003788,31]
[393689590,1762927846811,-151.0,0.0003788,31]
[393689591,1762927846821,-860.807746,0.0003788,31]
[393689592,1762927846830,-151.0,0.0003788,31]
[393689593,1762927846839,-816.0,0.00037888,60]
[393689594,1762927846849,-240.0,0.00037889,120]
[393689595,1762927846858,-210.028406,0.0003789,31]
[393689596,1762927846868,-151.0,0.0003789,31]
[393689597,1762927846877,-171.934768,0.0003789,31]
[393689598,1762927846887,-171.934768,0.0003789,31]
[393689599,1762927846896,-171.934768,0.0003789,31]
[393689600,1762927846905,-171.934768,0.0003789,31]
[393689601,1762927846914,-151.85417,0.0003789,31]
[393689602,1762927846923,-151.85417,0.0003789,31]
[393689603,1762927846932,-151.85417,0.0003789,31]
[393689604,1762927846941,-151.85417,0.0003789,31]
[393689605,1762927846950,-151.0,0.0003789,31]
[393689606,1762927846960,-151.0,0.0003789,31]
[393689607,1762927846969,-162.154812,0.0003789,31]
[393689608,1762927846978,-151.0,0.0003789,31]
[393689609,1762927846987,-979.89432828,0.0003789,3]
[393689610,1762927846996,-168.0,0.00037898,2]
[393689611,1762927847006,-162.20909381,0.000379,11]
[393689612,1762927847016,-282.204576,0.000379,31]
[393689613,1762927847025,-151.0,0.000379,30]
[393689614,1762927847036,-151.0,0.000379,31]
[393689615,1762927847046,-202.963171,0.000379,31]
[393689616,1762927847055,-154.69172916,0.000379,2]
[393689617,1762927847064,-154.03,0.00037908,60]
[393689618,1762927847073,-1307.25172,0.0003791,2]
[393689619,1762927847083,-1773.3749431,0.00037916,2]
[393689620,1762927847092,-364.01,0.0003792,14]
[393689621,1762927847102,-500.0,0.00037955,30]
[393689622,1762927847114,-240.0,0.00037967,2]
[393689623,1762927847124,-152.0,0.00037976,9]
[393689624,1762927847133,-320.0,0.00037979,2]
[393689625,1762927847142,-1959.78865656,0.0003798,3]
[393689626,1762927847152,-1959.78865656,0.0003799,3]
[393689627,1762927847161,-795.21425162,0.00038,3]
[393689628,1762927847171,-200.0,0.00038,120]
[393689629,1762927847180,-277.60071961,0.00038,120]
[393689630,1762927847189,-63000.0,0.00038,45]
[393689631,1762927847199,-151.0,0.00038,30]
[393689632,1762927847208,-168.568917,0.00038,31]
[393689633,1762927847218,-264.50759,0.00038,31]
[393689634,1762927847227,-171.934768,0.00038,31]
[393689635,1762927847236,-171.934768,0.00038,31]
[393689636,1762927847246,-171.934768,0.00038,31]
[393689637,1762927847255,-171.934765,0.00038,31]
[393689638,1762927847265,-151.85417,0.00038,31]
[393689639,1762927847274,-151.85417,0.00038,31]
[393689640,1762927847286,-151.85417,0.00038,31]
[393689641,1762927847296,-151.854173,0.00038,31]
[393689642,1762927847305,-151.0,0.00038,31]
[393689643,1762927847314,-215.548906,0.00038,31]
[393689644,1762927847323,-175.905813,0.00038,31]
[393689645,1762927847334,-151.0,0.00038,31]
[393689646,1762927847343,-200.074386,0.00038,31]
[393689647,1762927847352,-151.0,0.00038,31]
[393689648,1762927847362,-200.074386,0.00038,31]
[393689649,1762927847371,-151.0,0.00038,31]
[393689650,1762927847380,-200.074386,0.00038,31]
[393689651,1762927847389,-200.074384,0.00038,31]
[393689652,1762927847399,-281.858739,0.00038,15]
[393689653,1762927847408,-151.0,0.00038,31]
[393689654,1762927847417,-281.858739,0.00038,15]
[393689655,1762927847427,-281.858739,0.00038,15]
[393689656,1762927847437,-281.858748,0.00038,15]
[393689657,1762927847446,-151.0,0.00038,31]
[393689658,1762927847455,-151.0,0.00038,31]
[393689659,1762927847468,-180.573868,0.00038,31]
[393689660,1762927847478,-151.0,0.00038,31]
[393689661,1762927847488,-180.573868,0.00038,31]
[393689662,1762927847497,-151.0,0.00038,31]
[393689663,1762927847507,-180.573868,0.00038,31]
[393689664,1762927847517,-180.573865,0.00038,31]
[393689665,1762927847526,-151.0,0.00038,31]
[393689666,1762927847535,-151.0,0.00038,31]
[393689667,1762927847545,-207.353684,0.00038,31]
[393689668,1762927847555,-154.03,0.00038008,60]
[393689669,1762927847564,-1003.0,0.00038017,3]
[393689670,1762927847574,-816.0,0.00038025,60]
[393689671,1762927847583,-3144.94801505,0.00038039,2]
[393689672,1762927847593,-500.0,0.00038043,30]
[393689673,1762927847603,-500.0,0.00038047,30]
[393689674,1762927847613,-168.0,0.0003805,2]
[393689675,1762927847623,-167.50010111,0.00038068,15]
[393689676,1762927847633,-500.0,0.00038074,30]
[393689677,1762927847643,-639.57225068,0.00038083,30]
[393689678,1762927847653,-165.0,0.00038097,120]
[393689679,1762927847663,-182.15107752,0.00038101,2]
[393689680,1762927847672,-154.03,0.00038108,60]
[393689681,1762927847682,-1000.0,0.00038122,7]
[393689682,1762927847692,-500.0,0.00038131,30]
[393689683,1762927847702,-500.0,0.00038144,30]
[393689684,1762927847711,-2524.0,0.00038144,120]
[393689685,1762927847721,-1773.3749431,0.00038153,2]
[393689686,1762927847730,-816.0,0.00038162,60]
[393689687,1762927847740,-151.0,0.00038162,31]
[393689688,1762927847749,-689.312974,0.00038162,31]
[393689689,1762927847759,-689.312974,0.00038162,31]
[393689690,1762927847770,-689.312974,0.00038162,31]
[393689691,1762927847780,-151.0,0.00038162,31]
[393689692,1762927847790,-860.807746,0.00038162,31]
[393689693,1762927847800,-689.312972,0.00038162,31]
[393689694,1762927847809,-151.0,0.00038162,31]
[393689695,1762927847819,-860.807746,0.00038162,31]
[393689696,1762927847828,-151.0,0.00038162,31]
[393689697,1762927847837,-327.0,0.00038175,2]
[393689698,1762927847969,-364.03,0.00038194,14]
[393689699,1762927847989,-372.54,0.00038195,9]
[393689700,1762927847998,-154.03,0.00038208,60]
[393689701,1762927848008,-201.0,0.00038212,7]
[393689702,1762927848019,-166.941464,0.00038249,2]
[393689703,1762927848030,-3144.94801505,0.00038252,2]
[393689704,1762927848039,-182.71759108,0.00038256,2]
[393689705,1762927848049,-500.0,0.00038293,30]
[393689706,1762927848059,-816.0,0.00038299,60]
[393689707,1762927848068,-2524.0,0.00038302,7]
[393689708,1762927848077,-154.03,0.00038308,60]
[393689709,1762927848086,-154.69172916,0.00038327,2]
[393689710,1762927848095,-1400.0,0.00038341,7]
[393689711,1762927848105,-979.89432828,0.00038345,3]
[393689712,1762927848115,-2939.68298484,0.00038346,3]
[393689713,1762927848124,-367.11868833,0.00038346,2]
[393689714,1762927848133,-1000.0,0.00038355,30]
[393689715,1762927848142,-150.0,0.00038355,20]
[393689716,1762927848152,-999.0,0.00038355,120]
[393689717,1762927848161,-500.0,0.00038355,2]
[393689718,1762927848170,-500.0,0.00038355,2]
[393689719,1762927848179,-500.0,0.00038355,2]
[393689720,1762927848190,-500.0,0.00038355,2]
[393689721,1762927848200,-500.0,0.00038355,2]
[393689722,1762927848212,-490.06214486,0.00038355,2]
[393689723,1762927848223,-1024.02196591,0.00038356,2]
[393689724,1762927848233,-343.58427326,0.00038356,20]
[393689725,1762927848243,-500.0,0.00038356,20]
[393689726,1762927848252,-378.06853674,0.00038356,20]
[393689727,1762927848261,-463.21541912,0.00038356,20]
[393689728,1762927848270,-489.70125607,0.00038356,20]
[393689729,1762927848279,-500.0,0.00038356,20]
[393689730,1762927848292,-242.02384585,0.00038356,20]
[393689731,1762927848302,-268.52539408,0.00038356,20]
[393689732,1762927848311,-482.97934893,0.00038356,20]
[393689733,1762927848321,-262.46696511,0.00038356,20]
[393689734,1762927848330,-500.0,0.00038356,20]
[393689735,1762927848342,-202.26859502,0.00038356,20]
[393689736,1762927848351,-501.77706848,0.00038356,15]
[393689737,1762927848360,-508.73553028,0.00038356,20]
[393689738,1762927848371,-471.45644538,0.00038356,20]
[393689739,1762927848380,-510.6291066,0.00038356,20]
[393689740,1762927848389,-485.0093193,0.00038356,20]
[393689741,1762927848398,-500.0,0.00038356,20]
[393689742,1762927848408,-392.87894568,0.00038356,20]
[393689743,1762927848417,-492.78533773,0.00038356,20]
[393689744,1762927848427,-500.0,0.00038356,20]
[393689745,1762927848436,-500.0,0.00038356,20]
[393689746,1762927848446,-463.25989127,0.00038356,20]
[393689747,1762927848455,-500.0,0.00038356,20]
[393689748,1762927848465,-393.15466056,0.00038356,20]
[393689749,1762927848475,-409.02128675,0.00038356,20]
[393689750,1762927848484,-515.2732249,0.00038356,20]
[393689751,1762927848493,-499.24801651,0.00038356,20]
[393689752,1762927848502,-302.04169818,0.00038356,20]
[393689753,1762927848513,-229.62557146,0.00038356,20]
[393689754,1762927848522,-429.92395539,0.00038356,20]
[393689755,1762927848531,-236.68279814,0.00038356,20]
[393689756,1762927848541,-179.01237116,0.00038356,20]
[393689757,1762927848550,-456.58537264,0.00038356,20]
[393689758,1762927848559,-645.03560296,0.00038356,20]
[393689759,1762927848570,-500.0,0.00038356,20]
[393689760,1762927848580,-500.0,0.00038356,20]
[393689761,1762927848589,-249.42479692,0.00038356,20]
[393689762,1762927848598,-259.91744783,0.00038356,20]
[393689763,1762927848607,-227.931262,0.00038356,20]
[393689764,1762927848617,-227.931262,0.00038356,20]
[393689765,1762927848626,-227.931262,0.00038356,20]
[393689766,1762927848635,-160.020311,0.00038356,20]
[393689767,1762927848645,-181.906976,0.00038356,20]
[393689768,1762927848654,-160.020311,0.00038356,20]
[393689769,1762927848664,-181.906976,0.00038356,20]
[393689770,1762927848673,-160.020311,0.00038356,20]
[393689771,1762927848682,-704.090081,0.00038356,20]
[393689772,1762927848691,-704.090081,0.00038356,20]
[393689773,1762927848700,-704.090081,0.00038356,20]
[393689774,1762927848708,-500.0,0.00038356,20]
[393689775,1762927848717,-500.0,0.00038356,20]
[393689776,1762927848727,-500.0,0.00038356,20]
[393689777,1762927848736,-500.0,0.00038356,20]
[393689778,1762927848746,-459.088861,0.00038356,20]
[393689779,1762927848755,-500.0,0.00038356,20]
[393689780,1762927848765,-459.088861,0.00038356,20]
[393689781,1762927848775,-500.0,0.00038356,20]
[393689782,1762927848784,-459.088861,0.00038356,20]
[393689783,1762927848793,-500.0,0.00038356,20]
[393689784,1762927848803,-500.0,0.00038356,20]
[393689785,1762927848812,-872.093246,0.00038356,20]
[393689786,1762927848822,-872.093246,0.00038356,20]
[393689787,1762927848831,-872.093246,0.00038356,20]
[393689788,1762927848840,-333.05696564,0.00038356,20]
[393689789,1762927848850,-500.0,0.00038356,20]
[393689790,1762927848859,-271.13684831,0.00038356,20]
[393689791,1762927848868,-500.0,0.00038356,20]
[393689792,1762927848878,-500.0,0.00038356,20]
[393689793,1762927848887,-500.0,0.00038356,20]
[393689794,1762927848896,-500.0,0.00038356,20]
[393689795,1762927848905,-500.0,0.00038356,20]
[393689796,1762927848915,-500.0,0.00038356,20]
[393689797,1762927848924,-566.12771385,0.00038356,20]
[393689798,1762927848933,-1000.0,0.00038356,120]
[393689799,1762927848943,-1000.0,0.00038356,120]
[393689800,1762927848952,-1000.0,0.00038356,120]
[393689801,1762927848961,-500.0,0.00038356,120]
[393689802,1762927848970,-500.0,0.00038356,20]
[393689803,1762927848979,-500.0,0.00038356,20]
[393689804,1762927848988,-500.0,0.00038356,20]
[393689805,1762927848997,-500.0,0.00038356,20]
[393689806,1762927849006,-500.0,0.00038356,20]
[393689807,1762927849016,-462.59363943,0.00038356,20]
[393689808,1762927849025,-815.25,0.00038356,20]
[393689809,1762927849035,-815.25,0.00038356,20]
[393689810,1762927849044,-815.25,0.00038356,20]
[393689811,1762927849053,-815.25,0.00038356,20]
[393689812,1762927849062,-815.25,0.00038356,20]
[393689813,1762927849071,-815.25,0.00038356,20]
[393689814,1762927849080,-815.25,0.00038356,20]
[393689815,1762927849090,-815.25,0.00038356,20]
[393689816,1762927849099,-500.0,0.00038356,20]
[393689817,1762927849110,-256.71195933,0.00038356,20]
[393689818,1762927849121,-228.12254835,0.00038356,20]
[393689819,1762927849132,-3437.69,0.00038356,20]
[393689820,1762927849141,-3437.69,0.00038356,20]
[393689821,1762927849150,-3437.69,0.00038356,20]
[393689822,1762927849159,-3437.69,0.00038356,20]
[393689823,1762927849168,-3437.69,0.00038356,20]
[393689824,1762927849178,-3437.69,0.00038356,20]
[393689825,1762927849187,-3437.69,0.00038356,20]
[393689826,1762927849196,-3437.69,0.00038356,20]
[393689827,1762927849206,-500.0,0.00038356,20]
[393689828,1762927849214,-257.74854312,0.00038356,20]
[393689829,1762927849223,-94.57747035,0.00038356,20]
[393689830,1762927849554,-405.42252965,0.00038356,20]
[393689831,1762927849563,-53.02494364,0.00038356,20]
[393689832,1762927849574,-446.97505636,0.00038356,20]
[393689833,1762927849584,-404.57572779,0.00038356,20]
[393689834,1762927849593,-387.61691332,0.00038356,20]
[393689835,1762927849602,-500.0,0.00038356,20]
[393689836,1762927849611,-500.0,0.00038356,20]
[393689837,1762927849621,-500.0,0.00038356,20]
[393689838,1762927849630,-500.0,0.00038356,20]
[393689839,1762927849641,-500.0,0.00038356,20]
[393689840,1762927849651,-500.0,0.00038356,20]
[393689841,1762927849662,-500.0,0.00038356,20]
[393689842,1762927849671,-500.0,0.00038356,20]
[393689843,1762927849680,-332.65926516,0.00038356,20]
[393689844,1762927849690,-595.3752273,0.00038356,20]
[393689845,1762927849700,-436.66631772,0.00038356,20]
[393689846,1762927849709,-500.0,0.00038356,20]
[393689847,1762927849718,-500.0,0.00038356,20]
[393689848,1762927849728,-158.33633909,0.00038356,20]
[393689849,1762927849745,-500.0,0.00038356,20]
[393689850,1762927849758,-385.40570915,0.00038356,20]
[393689851,1762927849768,-500.0,0.00038356,20]
[393689852,1762927849777,-500.0,0.00038356,20]
[393689853,1762927849786,-404.34877411,0.00038356,20]
[393689854,1762927849803,-95.65122589,0.00038356,20]
[393689855,1762927849812,-500.0,0.00038356,20]
[393689856,1762927849822,-321.94,0.00038356,20]
[393689857,1762927849831,-321.94,0.00038356,20]
[393689858,1762927849840,-321.94,0.00038356,20]
[393689859,1762927849849,-376.22332225,0.00038356,20]
[393689860,1762927849859,-203.66899522,0.00038356,20]
[393689861,1762927849868,-500.0,0.00038356,20]
[393689862,1762927849877,-500.0,0.00038356,20]
[393689863,1762927849886,-500.0,0.00038356,20]
[393689864,1762927849895,-603.01482008,0.00038356,20]
[393689865,1762927849905,-345.8961328,0.00038356,20]
[393689866,1762927849915,-293.2784859,0.00038356,20]
[393689867,1762927849926,-245.64608502,0.00038356,20]
[393689868,1762927849936,-151.0,0.00038356,30]
[393689869,1762927849945,-500.0,0.00038356,20]
[393689870,1762927849954,-500.0,0.00038356,20]
[393689871,1762927849963,-642.0548374,0.00038356,20]
[393689872,1762927849972,-500.0,0.00038356,20]
[393689873,1762927849982,-500.0,0.00038356,20]
[393689874,1762927849991,-32.86493347,0.00038356,20]
[393689875,1762927850012,-172.60494568,0.00038356,20]
[393689876,1762927850022,-430.39330812,0.00038356,20]
[393689877,1762927850032,-500.0,0.00038356,20]
[393689878,1762927850041,-500.0,0.00038356,20]
[393689879,1762927850050,-500.0,0.00038356,20]
[393689880,1762927850060,-390.21956036,0.00038356,20]
[393689881,1762927850229,-109.78043964,0.00038356,20]
[393689882,1762927850238,-294.80358241,0.00038356,20]
[393689883,1762927850247,-399.56719574,0.00038356,20]
[393689884,1762927850257,-418.87670155,0.00038356,20]
[393689885,1762927850267,-500.0,0.00038356,20]
[393689886,1762927850277,-500.0,0.00038356,20]
[393689887,1762927850287,-361.52158822,0.00038356,20]
[393689888,1762927850298,-245.22383155,0.00038356,20]
[393689889,1762927850307,-426.09508797,0.00038356,20]
[393689890,1762927850317,-500.0,0.00038356,20]
[393689891,1762927850327,-500.0,0.00038356,20]
[393689892,1762927850336,-500.0,0.00038356,20]
[393689893,1762927850346,-500.0,0.00038356,20]
[393689894,1762927850355,-500.0,0.00038356,20]
[393689895,1762927850366,-172.34866618,0.00038356,20]
[393689896,1762927850375,-500.0,0.00038356,20]
[393689897,1762927850383,-211.50889274,0.00038356,20]
[393689898,1762927850393,-796.71,0.00038356,20]
[393689899,1762927850402,-796.71,0.00038356,20]
[393689900,1762927850411,-796.71,0.00038356,20]
[393689901,1762927850420,-500.0,0.00038356,20]
[393689902,1762927850430,-500.0,0.00038356,20]
[393689903,1762927850439,-500.0,0.00038356,20]
[393689904,1762927850447,-500.0,0.00038356,20]
[393689905,1762927850456,-500.0,0.00038356,20]
[393689906,1762927850465,-500.0,0.00038356,20]
[393689907,1762927850475,-570.45289654,0.00038356,20]
[393689908,1762927850484,-195.15600866,0.00038356,20]
[393689909,1762927850494,-500.0,0.00038356,20]
[393689910,1762927850503,-500.0,0.00038356,20]
[393689911,1762927850512,-500.0,0.00038356,20]
[393689912,1762927850522,-221.7972769,0.00038356,20]
[393689913,1762927850532,-500.0,0.00038356,20]
[393689914,1762927850541,-154.64889256,0.00038356,20]
[393689915,1762927850550,-500.0,0.00038356,20]
[393689916,1762927850559,-161.48025545,0.00038356,20]
[393689917,1762927850568,-500.0,0.00038356,20]
[393689918,1762927850577,-500.0,0.00038356,20]
[393689919,1762927850586,-500.0,0.00038356,20]
[393689920,1762927850597,-500.0,0.00038356,20]
[393689921,1762927850606,-500.0,0.00038356,20]
[393689922,1762927850615,-461.21888828,0.00038356,20]
[393689923,1762927850624,-415.85385168,0.00038356,20]
[393689924,1762927850634,-574.63040048,0.00038356,20]
[393689925,1762927850644,-500.0,0.00038356,20]
[393689926,1762927850654,-540.09252395,0.00038356,20]
[393689927,1762927850663,-500.0,0.00038356,20]
[393689928,1762927850673,-335.61385221,0.00038356,20]
[393689929,1762927850683,-434.24779676,0.00038356,20]
[393689930,1762927850692,-389.9584731,0.00038356,20]
[393689931,1762927850701,-514.16541612,0.00038356,20]
[393689932,1762927850710,-500.0,0.00038356,20]
[393689933,1762927850719,-500.0,0.00038356,20]
[393689934,1762927850728,-397.75266876,0.00038356,20]
[393689935,1762927850749,-500.0,0.00038356,20]
[393689936,1762927850760,-163.45895939,0.00038356,20]
[393689937,1762927850769,-500.0,0.00038356,20]
[393689938,1762927850778,-500.0,0.00038356,20]
[393689939,1762927850788,-500.0,0.00038356,20]
[393689940,1762927850797,-500.0,0.00038356,20]
[393689941,1762927850807,-500.0,0.00038356,20]
[393689942,1762927850816,-500.0,0.00038356,20]
[393689943,1762927850826,-500.0,0.00038356,20]
[393689944,1762927850839,-500.0,0.00038356,20]
[393689945,1762927850849,-500.0,0.00038356,20]
[393689946,1762927850858,-218.30835971,0.00038356,20]
[393689947,1762927850867,-500.0,0.00038356,20]
[393689948,1762927850877,-500.0,0.00038356,20]
[393689949,1762927850886,-500.0,0.00038356,20]
[393689950,1762927850895,-500.0,0.00038356,20]
[393689951,1762927850905,-343.83022967,0.00038356,20]
[393689952,1762927850915,-500.0,0.00038356,20]
[393689953,1762927850925,-500.0,0.00038356,20]
[393689954,1762927850938,-211.89690084,0.00038356,20]
[393689955,1762927850947,-500.0,0.00038356,20]
[393689956,1762927850955,-306.61041101,0.00038356,20]
[393689957,1762927850965,-502.33029524,0.00038356,20]
[393689958,1762927850975,-591.44017905,0.00038356,20]